[Event "November 21 Late 2023"]
[Site "https://www.chess.com"]
[Date "2023.11.21"]
[Round "9"]
[White "Goltsev, Dmitry"]
[Black "Van Dael, Siem"]
[Result "0-1"]
[Board "30"]
[TimeControl "180+1"]
[WhiteFideId "24176710"]
[BlackFideId "1049771"]
[WhiteElo "2370"]
[BlackElo "2252"]
[WhiteTeam "RUS"]
[BlackTeam "NED"]
[WhiteClock "0:00:07"]
[BlackClock "0:00:06"]

1. e4 {[%clk 0:02:58]}  c5 {[%clk 0:02:59]} 2. Nf3 {[%clk 0:02:58]}  d6 {[%clk 0:03:00]} 3. d4 {[%clk 0:02:58]}  cxd4 {[%clk 0:03:01]} 4. Nxd4 {[%clk 0:02:59]}  Nf6 {[%clk 0:03:02]} 5. Nc3 {[%clk 0:02:59]}  a6 {[%clk 0:03:02]} 6. f3 {[%clk 0:02:58]}  e5 {[%clk 0:03:01]} 7. Nb3 {[%clk 0:02:58]}  Be6 {[%clk 0:03:01]} 8. Bg5 {[%clk 0:02:53]}  Be7 {[%clk 0:02:55]} 9. Bxf6 {[%clk 0:02:52]}  Bxf6 {[%clk 0:02:55]} 10. Nd5 {[%clk 0:02:53]}  Bg5 {[%clk 0:02:54]} 11. c4 {[%clk 0:02:48]}  Nc6 {[%clk 0:02:49]} 12. Bd3 {[%clk 0:02:48]}  O-O {[%clk 0:02:44]} 13. O-O {[%clk 0:02:43]}  Rc8 {[%clk 0:02:44]} 14. Qe2 {[%clk 0:02:39]}  Bxd5 {[%clk 0:01:57]} 15. cxd5 {[%clk 0:02:29]}  Qb6+ {[%clk 0:01:57]} 16. Kh1 {[%clk 0:02:28]}  Nd4 {[%clk 0:01:57]} 17. Nxd4 {[%clk 0:02:27]}  Qxd4 {[%clk 0:01:56]} 18. g3 {[%clk 0:02:24]}  b5 {[%clk 0:01:50]} 19. f4 {[%clk 0:02:22]}  exf4 {[%clk 0:01:49]} 20. gxf4 {[%clk 0:02:23]}  Bf6 {[%clk 0:01:49]} 21. b3 {[%clk 0:02:12]}  Rc3 {[%clk 0:01:44]} 22. Rad1 {[%clk 0:02:11]}  Qc5 {[%clk 0:01:35]} 23. Rf3 {[%clk 0:01:59]}  Re8 {[%clk 0:01:33]} 24. Rh3 {[%clk 0:01:46]}  g6 {[%clk 0:01:31]} 25. Rg1 {[%clk 0:01:28]}  Rc1 {[%clk 0:01:24]} 26. Rg3 {[%clk 0:01:20]}  Rxg1+ {[%clk 0:01:23]} 27. Rxg1 {[%clk 0:01:19]}  Bd4 {[%clk 0:01:17]} 28. Rd1 {[%clk 0:01:04]}  Kg7 {[%clk 0:01:12]} 29. Qc2 {[%clk 0:01:01]}  Qxc2 {[%clk 0:00:54]} 30. Bxc2 {[%clk 0:01:00]}  Be3 {[%clk 0:00:55]} 31. f5 {[%clk 0:00:42]}  gxf5 {[%clk 0:00:50]} 32. exf5 {[%clk 0:00:43]}  Rc8 {[%clk 0:00:47]} 33. Bd3 {[%clk 0:00:39]}  Rc5 {[%clk 0:00:45]} 34. Be4 {[%clk 0:00:39]}  Kf6 {[%clk 0:00:42]} 35. Kg2 {[%clk 0:00:39]}  Bf4 {[%clk 0:00:41]} 36. h3 {[%clk 0:00:34]}  Rc3 {[%clk 0:00:33]} 37. Rf1 {[%clk 0:00:13]}  Rg3+ {[%clk 0:00:31]} 38. Kf2 {[%clk 0:00:07]}  Rxh3 {[%clk 0:00:21]} 39. Rd1 {[%clk 0:00:04]}  Rh2+ {[%clk 0:00:19]} 40. Bg2 {[%clk 0:00:04]}  Kxf5 {[%clk 0:00:18]} 41. Re1 {[%clk 0:00:03]}  Be5 {[%clk 0:00:17]} 42. Rd1 {[%clk 0:00:02]}  Rh4 {[%clk 0:00:17]} 43. Rc1 {[%clk 0:00:02]}  Rf4+ {[%clk 0:00:14]} 44. Bf3 {[%clk 0:00:02]}  h5 {[%clk 0:00:12]} 45. Ke2 {[%clk 0:00:02]}  h4 {[%clk 0:00:11]} 46. Rh1 {[%clk 0:00:03]}  Rd4 {[%clk 0:00:08]} 47. Bg2 {[%clk 0:00:02]}  Kg5 {[%clk 0:00:07]} 48. Rf1 {[%clk 0:00:02]}  Bf4 {[%clk 0:00:07]} 49. Bh3 {[%clk 0:00:02]}  Rd2+ {[%clk 0:00:07]} 50. Kf3 {[%clk 0:00:02]}  Rd3+ {[%clk 0:00:07]} 51. Kg2 {[%clk 0:00:02]}  Rg3+ {[%clk 0:00:08]} 52. Kh2 {[%clk 0:00:03]}  Rf3+ {[%clk 0:00:08]} 53. Kg2 {[%clk 0:00:03]}  Rxf1 {[%clk 0:00:05]} 54. Kxf1 {[%clk 0:00:04]}  Kf6 {[%clk 0:00:05]} 55. Ke2 {[%clk 0:00:04]}  Ke5 {[%clk 0:00:06]} 56. Bg2 {[%clk 0:00:05]}  Kd4 {[%clk 0:00:06]} 57. Kf3 {[%clk 0:00:05]}  Be5 {[%clk 0:00:06]} 58. Kg4 {[%clk 0:00:06]}  Kc3 {[%clk 0:00:06]} 59. Kxh4 {[%clk 0:00:06]}  Kb2 {[%clk 0:00:06]} 60. a4 {[%clk 0:00:06]}  b4 {[%clk 0:00:05]} 61. a5 {[%clk 0:00:05]}  Kxb3 {[%clk 0:00:06]} 62. Bf1 {[%clk 0:00:05]}  Ka4 {[%clk 0:00:06]} 63. Bxa6 {[%clk 0:00:04]}  Kxa5 {[%clk 0:00:06]} 64. Bd3 {[%clk 0:00:04]}  b3 {[%clk 0:00:06]} 65. Kg4 {[%clk 0:00:04]}  Kb4 {[%clk 0:00:07]} 66. Kf3 {[%clk 0:00:04]}  Kc3 {[%clk 0:00:07]} 67. Bf5 {[%clk 0:00:03]}  Kd4 {[%clk 0:00:07]} 68. Be4 {[%clk 0:00:03]}  b2 {[%clk 0:00:07]} 69. Bb1 {[%clk 0:00:03]}  Kxd5 {[%clk 0:00:07]} 70. Ke2 {[%clk 0:00:04]}  Kc4 {[%clk 0:00:08]} 71. Kd2 {[%clk 0:00:04]}  Kd4 {[%clk 0:00:07]} 72. Kc2 {[%clk 0:00:05]}  Ke3 {[%clk 0:00:07]} 73. Kb3 {[%clk 0:00:05]}  d5 {[%clk 0:00:06]} 74. Kc2 {[%clk 0:00:05]}  f5 {[%clk 0:00:06]} 75. Ba2 {[%clk 0:00:06]}  d4 {[%clk 0:00:05]} 76. Be6 {[%clk 0:00:06]}  f4 {[%clk 0:00:06]} 77. Kxb2 {[%clk 0:00:06]}  f3 {[%clk 0:00:06]} 78. Bc4 {[%clk 0:00:06]}  d3+ {[%clk 0:00:04]} 79. Kc1 {[%clk 0:00:06]}  f2 {[%clk 0:00:05]} 80. Kb1 {[%clk 0:00:05]}  f1=Q+ {[%clk 0:00:05]} 81. Ka2 {[%clk 0:00:05]}  Qa1+ {[%clk 0:00:05]} 82. Kb3 {[%clk 0:00:06]}  Qc3+ {[%clk 0:00:05]} 83. Ka4 {[%clk 0:00:06]}  Qxc4+ {[%clk 0:00:06]} 84. Ka3 {[%clk 0:00:07]}  Qc3+ {[%clk 0:00:04]} 85. Ka4 {[%clk 0:00:07]}  Qb2 {[%clk 0:00:05]} 86. Ka5 {[%clk 0:00:07]}  Qb3 {[%clk 0:00:05]} 87. Ka6 {[%clk 0:00:07]}  Qb4 {[%clk 0:00:05]} 88. Ka7 {[%clk 0:00:08]}  Qb5 {[%clk 0:00:05]} 89. Ka8 {[%clk 0:00:07]}  Qb8# {[%clk 0:00:06]} 0-1

[Event "November 21 Late 2023"]
[Site "https://www.chess.com"]
[Date "2023.11.21"]
[Round "9"]
[White "TheKnightOfBosnia"]
[Black "Willy, Stephen"]
[Result "1-0"]
[Board "36"]
[TimeControl "180+1"]
[BlackFideId "30981468"]
[WhiteElo "2624"]
[BlackElo "2139"]
[BlackTeam "USA"]
[WhiteClock "0:00:32"]
[BlackClock "0:00:00"]

1. e4 {[%clk 0:03:00]}  d5 {[%clk 0:02:57]} 2. exd5 {[%clk 0:03:00]}  Nf6 {[%clk 0:02:57]} 3. h3 {[%clk 0:02:58]}  Qxd5 {[%clk 0:02:50]} 4. d4 {[%clk 0:02:57]}  Nc6 {[%clk 0:02:49]} 5. Nf3 {[%clk 0:02:56]}  e5 {[%clk 0:02:39]} 6. dxe5 {[%clk 0:02:32]}  Qxd1+ {[%clk 0:02:22]} 7. Kxd1 {[%clk 0:02:33]}  Ne4 {[%clk 0:02:18]} 8. Be3 {[%clk 0:02:30]}  Bf5 {[%clk 0:02:11]} 9. Bd3 {[%clk 0:02:25]}  Nb4 {[%clk 0:02:04]} 10. Ke2 {[%clk 0:02:18]}  O-O-O {[%clk 0:01:55]} 11. Rd1 {[%clk 0:02:16]}  Nxd3 {[%clk 0:01:47]} 12. cxd3 {[%clk 0:02:16]}  Nc5 {[%clk 0:01:39]} 13. d4 {[%clk 0:02:13]}  Na4 {[%clk 0:01:37]} 14. b3 {[%clk 0:02:08]}  Nb6 {[%clk 0:01:31]} 15. g4 {[%clk 0:02:06]}  Bd7 {[%clk 0:01:24]} 16. Nc3 {[%clk 0:02:02]}  Bb4 {[%clk 0:01:22]} 17. Rac1 {[%clk 0:02:00]}  h5 {[%clk 0:01:04]} 18. gxh5 {[%clk 0:01:36]}  Bxh3 {[%clk 0:01:02]} 19. Rg1 {[%clk 0:01:32]}  Rdg8 {[%clk 0:00:45]} 20. h6 {[%clk 0:01:09]}  gxh6 {[%clk 0:00:40]} 21. Rxg8+ {[%clk 0:01:08]}  Rxg8 {[%clk 0:00:41]} 22. Bxh6 {[%clk 0:01:09]}  Bg4 {[%clk 0:00:35]} 23. Ne4 {[%clk 0:00:49]}  Rh8 {[%clk 0:00:25]} 24. Bf4 {[%clk 0:00:44]}  Nd5 {[%clk 0:00:20]} 25. Bg3 {[%clk 0:00:42]}  f5 {[%clk 0:00:18]} 26. exf6 {[%clk 0:00:37]}  Re8 {[%clk 0:00:17]} 27. Be5 {[%clk 0:00:36]}  Bf5 {[%clk 0:00:08]} 28. Ng3 {[%clk 0:00:35]}  Bg6 {[%clk 0:00:07]} 29. Kf1 {[%clk 0:00:32]}  c6 {[%clk 0:00:06]} 30. Kg2 {[%clk 0:00:32]}  Rf8 {[%clk 0:00:05]} 31. Rh1 {[%clk 0:00:31]}  Nxf6 {[%clk 0:00:05]} 32. Rh6 {[%clk 0:00:32]}  Ne4 {[%clk 0:00:00]} 33. Rxg6 {[%clk 0:00:32]} 1-0

[Event "November 21 Late 2023"]
[Site "https://www.chess.com"]
[Date "2023.11.21"]
[Round "9"]
[White "Garrido, Denis"]
[Black "Statham_l3"]
[Result "0-1"]
[Board "37"]
[TimeControl "180+1"]
[WhiteFideId "601217"]
[WhiteElo "2402"]
[BlackElo "2598"]
[WhiteTeam "FRA"]
[WhiteClock "0:00:11"]
[BlackClock "0:00:05"]

1. e4 {[%clk 0:02:59]}  e5 {[%clk 0:02:59]} 2. Nf3 {[%clk 0:02:59]}  Nc6 {[%clk 0:02:59]} 3. Bb5 {[%clk 0:02:59]}  Nf6 {[%clk 0:02:58]} 4. d3 {[%clk 0:02:58]}  Bc5 {[%clk 0:02:57]} 5. c3 {[%clk 0:02:58]}  d5 {[%clk 0:02:56]} 6. Nbd2 {[%clk 0:02:57]}  O-O {[%clk 0:02:49]} 7. O-O {[%clk 0:02:57]}  Bg4 {[%clk 0:02:34]} 8. h3 {[%clk 0:02:50]}  Bh5 {[%clk 0:02:33]} 9. Qc2 {[%clk 0:02:38]}  Qe7 {[%clk 0:02:25]} 10. exd5 {[%clk 0:02:33]}  Nxd5 {[%clk 0:02:22]} 11. Re1 {[%clk 0:02:33]}  Bxf2+ {[%clk 0:01:18]} 12. Kxf2 {[%clk 0:02:31]}  Qc5+ {[%clk 0:01:18]} 13. d4 {[%clk 0:02:20]}  exd4 {[%clk 0:00:53]} 14. Nb3 {[%clk 0:01:51]}  Qxb5 {[%clk 0:00:48]} 15. Nbxd4 {[%clk 0:01:29]}  Qb6 {[%clk 0:00:47]} 16. Qf5 {[%clk 0:01:10]}  Bxf3 {[%clk 0:00:40]} 17. Qxf3 {[%clk 0:01:01]}  Nxd4 {[%clk 0:00:34]} 18. cxd4 {[%clk 0:01:00]}  Qxd4+ {[%clk 0:00:35]} 19. Kf1 {[%clk 0:00:59]}  Rae8 {[%clk 0:00:28]} 20. Bg5 {[%clk 0:00:59]}  h6 {[%clk 0:00:20]} 21. Red1 {[%clk 0:00:31]}  Qc4+ {[%clk 0:00:20]} 22. Kg1 {[%clk 0:00:31]}  hxg5 {[%clk 0:00:13]} 23. Rxd5 {[%clk 0:00:31]}  Re3 {[%clk 0:00:08]} 24. Qf5 {[%clk 0:00:28]}  c6 {[%clk 0:00:03]} 25. Rd2 {[%clk 0:00:24]}  Qf4 {[%clk 0:00:02]} 26. Qc2 {[%clk 0:00:22]}  Rfe8 {[%clk 0:00:03]} 27. Rf1 {[%clk 0:00:22]}  Re1 {[%clk 0:00:03]} 28. Rf2 {[%clk 0:00:23]}  Rxf1+ {[%clk 0:00:03]} 29. Rxf1 {[%clk 0:00:23]}  Qe3+ {[%clk 0:00:04]} 30. Kh1 {[%clk 0:00:22]}  f6 {[%clk 0:00:04]} 31. Qc4+ {[%clk 0:00:21]}  Qe6 {[%clk 0:00:04]} 32. Qb4 {[%clk 0:00:20]}  b6 {[%clk 0:00:04]} 33. Qc3 {[%clk 0:00:19]}  Qd5 {[%clk 0:00:04]} 34. Kh2 {[%clk 0:00:19]}  Re4 {[%clk 0:00:04]} 35. Kh1 {[%clk 0:00:17]}  Qe5 {[%clk 0:00:04]} 36. Qxc6 {[%clk 0:00:16]}  Re3 {[%clk 0:00:04]} 37. Qc8+ {[%clk 0:00:15]}  Kh7 {[%clk 0:00:05]} 38. Qc2+ {[%clk 0:00:15]}  Qe4 {[%clk 0:00:05]} 39. Qxe4+ {[%clk 0:00:11]}  Rxe4 {[%clk 0:00:06]} 40. Rf3 {[%clk 0:00:11]}  Re2 {[%clk 0:00:05]} 41. Rb3 {[%clk 0:00:11]}  Kg6 {[%clk 0:00:05]} 42. Kg1 {[%clk 0:00:11]}  Kf5 {[%clk 0:00:05]} 43. Kf1 {[%clk 0:00:12]}  Rc2 {[%clk 0:00:06]} 44. Kg1 {[%clk 0:00:13]}  Ke5 {[%clk 0:00:05]} 45. Kh2 {[%clk 0:00:13]}  f5 {[%clk 0:00:04]} 46. Kg3 {[%clk 0:00:13]}  g6 {[%clk 0:00:04]} 47. Kf3 {[%clk 0:00:13]}  Rd2 {[%clk 0:00:04]} 48. Re3+ {[%clk 0:00:13]}  Kd4 {[%clk 0:00:03]} 49. Rb3 {[%clk 0:00:14]}  Rd3+ {[%clk 0:00:03]} 50. Rxd3+ {[%clk 0:00:14]}  Kxd3 {[%clk 0:00:04]} 51. h4 {[%clk 0:00:14]}  gxh4 {[%clk 0:00:04]} 52. Kf4 {[%clk 0:00:15]}  Ke2 {[%clk 0:00:04]} 53. b4 {[%clk 0:00:12]}  Kf2 {[%clk 0:00:05]} 54. Kg5 {[%clk 0:00:12]}  Kxg2 {[%clk 0:00:04]} 55. Kxh4 {[%clk 0:00:12]}  f4 {[%clk 0:00:04]} 56. a4 {[%clk 0:00:11]}  f3 {[%clk 0:00:05]} 0-1

[Event "November 21 Late 2023"]
[Site "https://www.chess.com"]
[Date "2023.11.21"]
[Round "9"]
[White "Leiva, Gianmarco"]
[Black "Estrategia_vs_Tactica"]
[Result "1-0"]
[Board "38"]
[TimeControl "180+1"]
[WhiteFideId "3804399"]
[WhiteElo "2335"]
[BlackElo "2365"]
[WhiteTeam "PER"]
[WhiteClock "0:00:07"]
[BlackClock "0:00:06"]

1. e4 {[%clk 0:02:59]}  d6 {[%clk 0:02:57]} 2. d4 {[%clk 0:02:59]}  g6 {[%clk 0:02:57]} 3. Nc3 {[%clk 0:02:58]}  Bg7 {[%clk 0:02:57]} 4. Nf3 {[%clk 0:02:58]}  Nf6 {[%clk 0:02:57]} 5. h3 {[%clk 0:02:59]}  O-O {[%clk 0:02:57]} 6. Be2 {[%clk 0:02:55]}  Nc6 {[%clk 0:02:56]} 7. O-O {[%clk 0:02:55]}  a6 {[%clk 0:02:55]} 8. Be3 {[%clk 0:02:54]}  e5 {[%clk 0:02:54]} 9. dxe5 {[%clk 0:02:52]}  dxe5 {[%clk 0:02:53]} 10. Qc1 {[%clk 0:02:52]}  Qe8 {[%clk 0:02:50]} 11. Bh6 {[%clk 0:02:49]}  Qe7 {[%clk 0:02:35]} 12. Rd1 {[%clk 0:02:44]}  Rd8 {[%clk 0:02:34]} 13. Rxd8+ {[%clk 0:02:15]}  Qxd8 {[%clk 0:02:35]} 14. Bc4 {[%clk 0:02:15]}  Qe7 {[%clk 0:02:27]} 15. Qe3 {[%clk 0:02:08]}  Be6 {[%clk 0:02:21]} 16. Nd5 {[%clk 0:01:56]}  Bxd5 {[%clk 0:01:46]} 17. Bxd5 {[%clk 0:01:55]}  Bxh6 {[%clk 0:01:44]} 18. Qxh6 {[%clk 0:01:55]}  Nxd5 {[%clk 0:01:40]} 19. exd5 {[%clk 0:01:55]}  Nd4 {[%clk 0:01:40]} 20. Nxd4 {[%clk 0:01:44]}  exd4 {[%clk 0:01:41]} 21. c4 {[%clk 0:01:28]}  dxc3 {[%clk 0:01:39]} 22. bxc3 {[%clk 0:01:29]}  Qe5 {[%clk 0:01:35]} 23. Qd2 {[%clk 0:01:27]}  Rd8 {[%clk 0:01:33]} 24. Rd1 {[%clk 0:01:27]}  b5 {[%clk 0:01:26]} 25. Qd4 {[%clk 0:01:00]}  Qxd4 {[%clk 0:01:25]} 26. Rxd4 {[%clk 0:01:01]}  Kf8 {[%clk 0:01:26]} 27. c4 {[%clk 0:00:54]}  c5 {[%clk 0:01:07]} 28. Rd1 {[%clk 0:00:17]}  bxc4 {[%clk 0:01:06]} 29. d6 {[%clk 0:00:17]}  Ke8 {[%clk 0:01:04]} 30. Rd5 {[%clk 0:00:16]}  Kd7 {[%clk 0:00:57]} 31. Rxc5 {[%clk 0:00:16]}  Rc8 {[%clk 0:00:57]} 32. Rd5 {[%clk 0:00:04]}  c3 {[%clk 0:00:57]} 33. Rd1 {[%clk 0:00:05]}  c2 {[%clk 0:00:57]} 34. Rc1 {[%clk 0:00:06]}  Kxd6 {[%clk 0:00:57]} 35. Kf1 {[%clk 0:00:07]}  Kd5 {[%clk 0:00:52]} 36. Ke2 {[%clk 0:00:07]}  Kd4 {[%clk 0:00:46]} 37. Kd2 {[%clk 0:00:08]}  h5 {[%clk 0:00:32]} 38. Rxc2 {[%clk 0:00:08]}  Rxc2+ {[%clk 0:00:30]} 39. Kxc2 {[%clk 0:00:08]}  h4 {[%clk 0:00:30]} 40. Kb3 {[%clk 0:00:04]}  Kc5 {[%clk 0:00:20]} 41. Ka4 {[%clk 0:00:04]}  Kb6 {[%clk 0:00:19]} 42. Kb4 {[%clk 0:00:04]}  a5+ {[%clk 0:00:18]} 43. Kc4 {[%clk 0:00:04]}  Kc6 {[%clk 0:00:18]} 44. g3 {[%clk 0:00:03]}  hxg3 {[%clk 0:00:14]} 45. fxg3 {[%clk 0:00:04]}  f6 {[%clk 0:00:12]} 46. h4 {[%clk 0:00:03]}  f5 {[%clk 0:00:11]} 47. a4 {[%clk 0:00:03]}  Kd6 {[%clk 0:00:07]} 48. Kb5 {[%clk 0:00:04]}  Ke5 {[%clk 0:00:05]} 49. Kxa5 {[%clk 0:00:04]}  Ke4 {[%clk 0:00:06]} 50. Kb5 {[%clk 0:00:04]}  Kf3 {[%clk 0:00:07]} 51. a5 {[%clk 0:00:05]}  Kxg3 {[%clk 0:00:08]} 52. a6 {[%clk 0:00:05]}  f4 {[%clk 0:00:08]} 53. a7 {[%clk 0:00:06]}  f3 {[%clk 0:00:09]} 54. a8=Q {[%clk 0:00:07]}  f2 {[%clk 0:00:06]} 55. Qh1 {[%clk 0:00:07]} 1-0

[Event "November 21 Late 2023"]
[Site "https://www.chess.com"]
[Date "2023.11.21"]
[Round "9"]
[White "RodokininEV"]
[Black "Maksimovic, Bojan"]
[Result "0-1"]
[Board "41"]
[TimeControl "180+1"]
[BlackFideId "14408120"]
[WhiteElo "2520"]
[BlackElo "2546"]
[BlackTeam "BIH"]
[WhiteClock "0:00:12"]
[BlackClock "0:01:01"]

1. d4 {[%clk 0:03:00]}  a6 {[%clk 0:02:52]} 2. e4 {[%clk 0:03:00]}  e6 {[%clk 0:02:53]} 3. Bd3 {[%clk 0:02:59]}  d5 {[%clk 0:02:53]} 4. Nd2 {[%clk 0:02:58]}  c5 {[%clk 0:02:53]} 5. exd5 {[%clk 0:02:53]}  exd5 {[%clk 0:02:53]} 6. Ngf3 {[%clk 0:02:49]}  Nc6 {[%clk 0:02:52]} 7. dxc5 {[%clk 0:02:47]}  Bxc5 {[%clk 0:02:52]} 8. O-O {[%clk 0:02:47]}  Nf6 {[%clk 0:02:52]} 9. Nb3 {[%clk 0:02:46]}  Ba7 {[%clk 0:02:52]} 10. Re1+ {[%clk 0:02:43]}  Be6 {[%clk 0:02:52]} 11. Rxe6+ {[%clk 0:02:19]}  fxe6 {[%clk 0:02:52]} 12. Qe2 {[%clk 0:02:19]}  Qe7 {[%clk 0:02:43]} 13. Ng5 {[%clk 0:02:14]}  e5 {[%clk 0:02:42]} 14. Bf5 {[%clk 0:02:14]}  O-O {[%clk 0:02:40]} 15. c4 {[%clk 0:02:10]}  dxc4 {[%clk 0:02:23]} 16. Qxc4+ {[%clk 0:02:08]}  Kh8 {[%clk 0:02:23]} 17. Qh4 {[%clk 0:02:05]}  h6 {[%clk 0:02:18]} 18. Ne6 {[%clk 0:01:53]}  Rf7 {[%clk 0:02:08]} 19. Ng5 {[%clk 0:01:46]}  Rff8 {[%clk 0:01:49]} 20. Ne6 {[%clk 0:01:44]}  Nd5 {[%clk 0:01:42]} 21. Bg5 {[%clk 0:01:16]}  Rxf5 {[%clk 0:01:39]} 22. Bxe7 {[%clk 0:01:14]}  Bxf2+ {[%clk 0:01:26]} 23. Qxf2 {[%clk 0:01:11]}  Rxf2 {[%clk 0:01:27]} 24. Kxf2 {[%clk 0:01:12]}  Ndxe7 {[%clk 0:01:26]} 25. Ke3 {[%clk 0:01:05]}  Nd5+ {[%clk 0:01:25]} 26. Ke4 {[%clk 0:01:03]}  Nf6+ {[%clk 0:01:26]} 27. Ke3 {[%clk 0:00:59]}  Re8 {[%clk 0:01:26]} 28. Nec5 {[%clk 0:00:58]}  e4 {[%clk 0:01:23]} 29. Rd1 {[%clk 0:00:52]}  Re7 {[%clk 0:01:23]} 30. Nd4 {[%clk 0:00:46]}  Nd5+ {[%clk 0:01:18]} 31. Ke2 {[%clk 0:00:46]}  Nf4+ {[%clk 0:01:18]} 32. Kf1 {[%clk 0:00:44]}  e3 {[%clk 0:01:16]} 33. Ne2 {[%clk 0:00:41]}  Rf7 {[%clk 0:01:07]} 34. Nxf4 {[%clk 0:00:39]}  Rxf4+ {[%clk 0:01:08]} 35. Ke2 {[%clk 0:00:40]}  Rf2+ {[%clk 0:01:09]} 36. Kxe3 {[%clk 0:00:40]}  Rxb2 {[%clk 0:01:10]} 37. Rd2 {[%clk 0:00:31]}  Rb5 {[%clk 0:01:10]} 38. Nd3 {[%clk 0:00:27]}  Ra5 {[%clk 0:01:09]} 39. Rb2 {[%clk 0:00:25]}  b5 {[%clk 0:01:10]} 40. Ke4 {[%clk 0:00:23]}  Ra3 {[%clk 0:01:09]} 41. Nc5 {[%clk 0:00:21]}  Na5 {[%clk 0:01:09]} 42. Kd5 {[%clk 0:00:18]}  Nc4 {[%clk 0:01:09]} 43. Re2 {[%clk 0:00:17]}  Kg8 {[%clk 0:01:00]} 44. h4 {[%clk 0:00:17]}  Kf7 {[%clk 0:01:00]} 45. h5 {[%clk 0:00:17]}  Kf6 {[%clk 0:01:00]} 46. Re6+ {[%clk 0:00:17]}  Kg5 {[%clk 0:01:01]} 47. Re2 {[%clk 0:00:18]}  Kxh5 {[%clk 0:01:01]} 48. Ne6 {[%clk 0:00:18]}  g5 {[%clk 0:01:02]} 49. Ng7+ {[%clk 0:00:17]}  Kg4 {[%clk 0:01:02]} 50. Re4+ {[%clk 0:00:18]}  Kg3 {[%clk 0:01:03]} 51. Re2 {[%clk 0:00:18]}  Kg4 {[%clk 0:01:02]} 52. Ne6 {[%clk 0:00:18]}  Ne3+ {[%clk 0:01:01]} 53. Ke4 {[%clk 0:00:17]}  Nf5 {[%clk 0:01:01]} 54. Nd4 {[%clk 0:00:12]}  Ng3+ {[%clk 0:01:01]} 0-1

[Event "November 21 Late 2023"]
[Site "https://www.chess.com"]
[Date "2023.11.21"]
[Round "9"]
[White "Kuegel, Tobias"]
[Black "BardArtem"]
[Result "0-1"]
[Board "42"]
[TimeControl "180+1"]
[WhiteFideId "4636295"]
[WhiteElo "2213"]
[BlackElo "2772"]
[WhiteTeam "GER"]
[WhiteClock "0:00:03"]
[BlackClock "0:00:45"]

1. e4 {[%clk 0:03:00]}  e5 {[%clk 0:02:58]} 2. Nf3 {[%clk 0:03:00]}  Nc6 {[%clk 0:02:59]} 3. Bb5 {[%clk 0:03:00]}  Nge7 {[%clk 0:02:59]} 4. Nc3 {[%clk 0:03:00]}  Ng6 {[%clk 0:02:57]} 5. d4 {[%clk 0:02:54]}  exd4 {[%clk 0:02:56]} 6. Nxd4 {[%clk 0:02:54]}  Bc5 {[%clk 0:02:56]} 7. Be3 {[%clk 0:02:25]}  Bb6 {[%clk 0:02:53]} 8. Qd2 {[%clk 0:02:14]}  O-O {[%clk 0:02:50]} 9. O-O-O {[%clk 0:02:13]}  Nxd4 {[%clk 0:02:43]} 10. Bxd4 {[%clk 0:02:11]}  Bxd4 {[%clk 0:02:44]} 11. Qxd4 {[%clk 0:02:11]}  d6 {[%clk 0:02:45]} 12. g3 {[%clk 0:01:47]}  a6 {[%clk 0:02:38]} 13. Be2 {[%clk 0:01:44]}  f5 {[%clk 0:02:32]} 14. f4 {[%clk 0:01:31]}  fxe4 {[%clk 0:02:18]} 15. Bc4+ {[%clk 0:01:23]}  Kh8 {[%clk 0:02:18]} 16. Nxe4 {[%clk 0:01:24]}  Bf5 {[%clk 0:02:15]} 17. Ng5 {[%clk 0:01:20]}  Qf6 {[%clk 0:02:08]} 18. Qd5 {[%clk 0:01:04]}  h6 {[%clk 0:02:00]} 19. h4 {[%clk 0:00:48]}  Rae8 {[%clk 0:01:45]} 20. Nf7+ {[%clk 0:00:46]}  Kh7 {[%clk 0:01:43]} 21. Ng5+ {[%clk 0:00:44]}  Kh8 {[%clk 0:01:42]} 22. Rhe1 {[%clk 0:00:41]}  Rxe1 {[%clk 0:01:24]} 23. Rxe1 {[%clk 0:00:37]}  c6 {[%clk 0:01:25]} 24. Qh1 {[%clk 0:00:24]}  d5 {[%clk 0:01:23]} 25. Bd3 {[%clk 0:00:20]}  Bxd3 {[%clk 0:01:17]} 26. cxd3 {[%clk 0:00:21]}  Kg8 {[%clk 0:01:06]} 27. Nf3 {[%clk 0:00:17]}  Ne7 {[%clk 0:01:00]} 28. Ne5 {[%clk 0:00:14]}  Qd6 {[%clk 0:00:55]} 29. Qg1 {[%clk 0:00:10]}  Nf5 {[%clk 0:00:55]} 30. a3 {[%clk 0:00:09]}  d4 {[%clk 0:00:53]} 31. Nc4 {[%clk 0:00:07]}  Qd5 {[%clk 0:00:45]} 32. Re5 {[%clk 0:00:06]}  Qf3 {[%clk 0:00:46]} 33. g4 {[%clk 0:00:05]}  Qxf4+ {[%clk 0:00:45]} 34. Kb1 {[%clk 0:00:03]}  Ne3 {[%clk 0:00:46]} 35. Re4 {[%clk 0:00:03]}  Qf1+ {[%clk 0:00:45]} 36. Qxf1 {[%clk 0:00:04]}  Rxf1+ {[%clk 0:00:46]} 37. Ka2 {[%clk 0:00:04]}  Nxc4 {[%clk 0:00:46]} 38. dxc4 {[%clk 0:00:04]}  c5 {[%clk 0:00:47]} 39. Re5 {[%clk 0:00:03]}  b6 {[%clk 0:00:47]} 40. Re6 {[%clk 0:00:04]}  Rf4 {[%clk 0:00:47]} 41. Re8+ {[%clk 0:00:04]}  Kh7 {[%clk 0:00:47]} 42. Rb8 {[%clk 0:00:04]}  Rxg4 {[%clk 0:00:47]} 43. h5 {[%clk 0:00:04]}  d3 {[%clk 0:00:45]} 44. Rxb6 {[%clk 0:00:04]}  d2 {[%clk 0:00:45]} 45. Rd6 {[%clk 0:00:03]}  Rd4 {[%clk 0:00:45]} 0-1